bitfinex-derivatives/quotes_ETHF0:USTF0_20250712
["timestamp","ask_amount","ask_price","bid_price","bid_amount"]
[1752321426552,5.6906,2963.2,2963.1,3.31786]
[1752321426755,5.6906,2963.2,2963.1,2.56056]
[1752321426951,6.5925,2963.2,2963.1,2.56056]
[1752321428750,6.5925,2963.2,2963.1,0.67466]
[1752321429158,7.26714,2963.2,2963.1,0.67466]
[1752321430057,6.5925,2963.2,2963.1,0.67466]
[1752321430459,7.26714,2963.2,2963.1,0.67466]
[1752321433561,6.5925,2963.2,2963.1,0.67466]
[1752321435161,6.5925,2963.2,2963.1,1.60176]
[1752321435457,6.5925,2963.2,2963.1,2.56056]
[1752321437669,6.5925,2963.2,2963.1,0.67466]
[1752321437970,7.26714,2963.2,2963.1,0.67466]
[1752321438871,8.10911409,2963.2,2963.1,0.67466]
[1752321440262,3.05877,2963.1,2963.0,0.67466]
[1752321440467,3.97847,2963.1,2963.0,0.67466]
[1752321440772,3.3038,2963.1,2963.0,0.67466]
[1752321441267,3.97846,2963.1,2963.0,0.67466]
[1752321441969,3.97846,2963.1,2963.0,1.62066]
[1752321442570,3.97846,2963.1,2963.0,0.946]
[1752321442767,2.335,2963.1,2962.6,0.946]
[1752321442975,3.97855,2962.7,2962.6,1.62077]
[1752321443773,3.97855,2962.7,2962.6,0.67477]
[1752321445066,3.97855,2962.7,2962.6,1.62077]
[1752321445375,3.3038,2962.7,2962.6,1.62077]
[1752321445576,3.3038,2962.7,2962.6,2.59267]
[1752321445769,3.97855,2962.7,2962.6,2.59267]
[1752321446276,3.97858,2962.6,2962.5,0.67478]
[1752321446481,4.82055409,2962.6,2962.5,0.67478]
[1752321446669,0.6748,2962.5,2962.4,0.6748]
[1752321446865,3.3038,2962.5,2962.4,1.6208]
[1752321447067,3.3038,2962.2,2962.1,50.21489]
[1752321447471,3.3038,2962.2,2962.1,2.59279]
[1752321448269,1.8885,2962.4,2962.3,0.67484]
[1752321448570,2.3841,2962.4,2962.3,3.33774]
[1752321448769,1.4153,2962.4,2962.3,3.33774]
[1752321448966,2.3841,2962.7,2962.6,0.67477]
[1752321449166,2.3841,2962.7,2962.6,3.33767]
[1752321449473,3.3038,2962.7,2962.6,2.59267]
[1752321453975,6.5116,2963.0,2962.9,1.64661]
[1752321454183,5.5919,2963.0,2962.9,3.33761]
[1752321454384,6.5116,2963.0,2962.9,2.59261]
[1752321455283,7.35357409,2963.0,2962.9,2.59261]
[1752321456383,6.5116,2963.0,2962.9,2.59261]
[1752321456582,5.5919,2963.0,2962.9,2.59261]
[1752321457386,5.5919,2963.0,2962.9,3.33761]
[1752321458081,6.5116,2963.0,2962.9,3.33761]
[1752321459080,6.5116,2963.0,2962.9,2.59261]
[1752321459887,3.3038,2963.0,2962.9,2.59261]
[1752321460084,4.14577409,2963.2,2963.1,1.9179]
[1752321460381,4.14577409,2963.2,2963.1,2.59256]
[1752321460582,4.14577409,2963.2,2963.1,1.62066]
[1752321462590,4.14577409,2963.2,2963.1,2.59256]
[1752321464681,4.14577409,2963.2,2963.1,1.62066]
[1752321464882,4.14577409,2963.2,2963.1,0.67466]
[1752321465182,3.3038,2963.2,2963.1,2.59556]
[1752321465385,2.3841,2963.2,2963.1,3.28826]
[1752321465581,2.3841,2963.2,2963.1,26.57426]
[1752321465986,1.4153,2963.2,2963.1,26.57426]
[1752321466788,3.3907,2963.7,2963.6,1.64945]
[1752321467087,3.3907,2963.7,2963.6,2.61125]
[1752321468585,2.4026,2963.7,2963.6,3.30395]
[1752321469391,2.4026,2963.7,2963.6,26.58795]
[1752321471788,1.4237,2963.7,2963.6,26.58795]
[1752321472787,7.44047409,2964.1,2964.0,2.61116]
[1752321480191,6.5985,2964.1,2964.0,2.61116]
[1752321480391,7.44047409,2964.1,2964.0,0.67446]
[1752321480592,3.3907,2963.6,2963.5,1.63637]
[1752321480795,3.07718,2963.5,2963.4,0.67459]
[1752321480989,1.65349,2963.4,2963.3,0.6746]
[1752321481195,6.45237409,2963.4,2963.3,0.6746]
[1752321481496,7.44047409,2963.4,2963.3,0.6746]
[1752321482694,6.5985,2963.4,2963.3,1.6495]
[1752321482895,6.5985,2963.4,2963.3,2.6113]
[1752321483393,3.3907,2963.4,2963.3,2.6113]
[1752321485593,3.3907,2963.4,2963.3,3.304]
[1752321487602,3.3907,2963.4,2963.3,2.6113]
[1752321489609,3.3907,2963.4,2963.1,0.00505706]
[1752321489897,3.3907,2963.4,2963.1,0.67971706]
[1752321489898,4.23267409,2963.2,2963.1,0.67971706]
[1752321492505,4.23267409,2963.2,2963.1,2.61641706]
[1752321493207,3.3907,2963.2,2963.1,2.61641706]
[1752321494309,3.3907,2963.2,2963.1,1.64151706]
[1752321494607,4.23267409,2963.2,2963.1,1.64151706]
[1752321495708,4.23267409,2963.2,2963.1,2.54111706]
[1752321497106,4.23267409,2963.2,2963.1,1.64151706]
[1752321497502,4.90731409,2963.2,2963.1,0.00505706]
[1752321506719,4.06534,2963.2,2963.1,0.00505706]
[1752321506913,4.90731409,2963.2,2963.1,0.90965706]
[1752321507618,4.90731409,2963.2,2963.1,1.80925706]
[1752321507818,4.90731409,2963.2,2963.1,2.48391706]
[1752321508115,4.90731409,2963.2,2963.1,1.80925706]
[1752321508316,4.90731409,2963.2,2963.1,2.48391706]
[1752321509117,3.2033,2962.7,2962.6,2.47898]
[1752321509416,4.04527409,2962.7,2962.6,2.47898]
[1752321509809,4.72002409,2962.7,2962.6,2.47898]
[1752321510016,3.2033,2962.7,2962.6,2.47898]
[1752321510716,3.87805,2962.7,2962.6,2.47898]
[1752321510919,3.2033,2962.7,2962.6,2.47898]
[1752321511216,1.3799,2962.7,2962.6,3.12038]
[1752321513023,3.87805,2962.7,2962.6,2.47898]
[1752321513417,3.87805,2962.7,2962.6,0.9046]
[1752321513624,3.87811,2962.5,2962.4,1.57941]
[1752321513921,3.2033,2962.5,2962.4,2.47901]
[1752321515218,0.8911,2962.5,2962.2,0.9046]
[1752321515519,3.2033,2962.3,2962.2,2.47907]
[1752321515920,7.25307409,2962.3,2962.2,1.57947]
[1752321516316,6.4111,2962.3,2962.2,2.47907]
[1752321516923,2.271,2962.3,2962.2,2.47907]
[1752321517120,1.3799,2962.3,2962.2,3.08517]
[1752321517921,3.2033,2962.3,2962.2,2.47907]
[1752321519025,3.2033,2962.3,2962.2,1.15394]
[1752321521515,3.2033,2962.3,2962.2,1.57947]
[1752321521715,2.271,2962.3,2962.2,1.57947]
[1752321522123,5.4788,2962.6,2962.5,1.5794]
[1752321522325,2.271,2962.6,2962.5,1.5794]
[1752321523218,3.2033,2962.6,2962.5,1.5794]
[1752321527024,1.3799,2962.6,2962.5,1.5794]
[1752321527224,1.46245706,2962.7,2962.6,1.62858]
[1752321527626,0.00505706,2962.7,2962.6,24.89558]
[1752321528122,0.00505706,2962.7,2962.6,29.89558]
[1752321528831,1.46245706,2962.7,2962.6,29.89558]
[1752321529725,2.42575706,2962.7,2962.6,6.62858]
[1752321529923,3.35805706,2962.7,2962.6,29.89458]
[1752321530322,3.35805706,2962.7,2962.6,24.89458]
[1752321531731,3.35805706,2962.7,2962.6,24.89358]
[1752321531926,3.35805706,2962.7,2962.6,24.89258]
[1752321534432,2.42575706,2962.7,2962.6,24.89258]
[1752321534734,3.35805706,2962.7,2962.6,25.73455409]
[1752321535234,3.35805706,2962.7,2962.6,24.89258]
[1752321535635,3.35805706,2962.7,2962.6,1.62858]
[1752321535832,3.35805706,2962.7,2962.6,24.89058]
[1752321536134,3.35805706,2962.7,2962.6,1.62858]
[1752321536434,3.35805706,2962.7,2962.6,24.89058]
[1752321536932,3.35805706,2962.7,2962.6,24.88958]
[1752321537936,3.35805706,2962.7,2962.6,24.88858]
[1752321539231,3.35805706,2962.7,2962.6,23.93478]
[1752321539436,3.35805706,2962.7,2962.6,24.88858]
[1752321539935,3.35805706,2962.7,2962.6,1.62858]
[1752321540132,3.35805706,2962.7,2962.6,24.88758]
[1752321542640,3.35805706,2962.7,2962.6,1.62858]
[1752321542841,3.35805706,2962.7,2962.6,24.88658]
[1752321543343,3.35805706,2962.7,2962.6,1.62858]
[1752321543544,3.35805706,2962.7,2962.6,24.88558]
[1752321551747,3.35805706,2962.7,2962.6,1.62858]
[1752321551948,3.35805706,2962.7,2962.6,24.88058]
[1752321552247,3.35805706,2962.7,2962.6,0.67478]
[1752321552649,1.8956,2962.2,2962.1,1.62869]
[1752321552844,3.353,2962.2,2962.1,24.88069]
[1752321553445,3.353,2962.2,2962.1,24.87969]
[1752321554142,3.353,2962.2,2962.1,25.72166409]
[1752321555941,3.353,2962.2,2962.1,2.47066409]
[1752321556153,3.353,2962.2,2962.1,25.72066409]
[1752321556450,3.353,2962.2,2962.1,2.47066409]
[1752321556650,3.353,2962.2,2962.1,25.72066409]
[1752321557155,0.00505706,2962.7,2962.6,1.64138]
[1752321557156,2.36085706,2962.7,2962.6,1.64138]
[1752321557349,1.41675706,2962.7,2962.6,25.73335409]
[1752321559659,0.00505706,2962.7,2962.6,25.73335409]
[1752321560258,1.41675706,2962.7,2962.6,25.73335409]
[1752321561053,0.9645,2963.4,2963.3,0.9456]
[1752321561253,1.9086,2963.4,2963.3,25.70919409]
[1752321561457,1.9086,2963.4,2963.3,25.83382]
[1752321563058,3.3203,2963.4,2963.3,26.91472]
[1752321563558,3.3203,2963.4,2963.3,27.75669409]
[1752321563759,1.4117,2963.4,2963.3,27.75669409]
[1752321564752,2.3762,2963.4,2963.3,27.75669409]
[1752321566463,1.4117,2963.4,2963.3,27.75669409]
[1752321566858,1.9086,2963.6,2963.5,1.62017]
[1752321567060,3.3203,2963.6,2963.5,27.75164409]
[1752321567761,3.3203,2963.6,2963.5,25.82877]
[1752321568264,3.3203,2963.6,2963.5,3.66767]
[1752321568463,3.3203,2963.6,2963.5,26.90867]
[1752321569162,6.5281,2964.0,2963.9,1.62008]
[1752321569365,6.5281,2964.0,2963.9,24.86008]
[1752321569861,6.5281,2964.0,2963.9,23.91448]
[1752321572565,6.5281,2964.0,2963.9,25.82668]
[1752321573461,6.5281,2964.0,2963.9,26.90758]
[1752321573661,3.2078,2964.0,2963.9,26.90758]
[1752321573962,1.9086,2964.2,2964.1,1.62004]
[1752321574163,1.9086,2964.2,2964.1,27.11524]
[1752321575861,5.1164,2964.3,2964.2,3.88021]
[1752321576066,6.5281,2964.3,2964.2,3.88021]
[1752321576263,6.5281,2964.3,2964.2,2.91361]
[1752321576467,7.37007409,2964.3,2964.2,23.90841]
[1752321576668,7.37007409,2964.3,2964.2,0.67441]
[1752321577066,7.37007409,2964.3,2964.2,23.90641]
[1752321578963,7.37007409,2964.3,2964.2,24.85201]
[1752321578964,6.5281,2964.3,2964.2,24.85201]
[1752321579372,6.5281,2964.3,2964.2,1.62001]
[1752321579568,6.5281,2964.3,2964.2,24.85101]
[1752321580071,6.5281,2964.3,2964.2,27.11121]
[1752321581075,3.3203,2964.3,2964.2,27.11121]
[1752321583376,3.3203,2964.3,2964.2,3.88021]
[1752321583568,3.3203,2964.3,2964.2,26.13961]
[1752321583769,3.3203,2964.3,2964.2,24.84601]
[1752321587577,3.3203,2964.3,2964.2,26.16151]
[1752321587979,3.3203,2964.3,2964.2,27.07131]
[1752321602982,3.3203,2964.3,2964.2,27.05831]
[1752321603182,3.3203,2964.3,2964.2,3.84531]
[1752321603385,4.16227409,2964.3,2964.2,0.67441]
[1752321603782,7.37007409,2964.3,2964.2,23.88641]
[1752321604490,7.37007409,2964.3,2964.2,0.67441]
[1752321604883,7.37007409,2964.3,2964.2,23.88541]
[1752321605286,7.37007409,2964.3,2964.2,0.47601]
[1752321605491,7.37007409,2964.3,2964.2,23.68701]
[1752321605886,7.37007409,2964.3,2964.2,0.47601]
[1752321606096,9.04019383,2964.3,2964.2,0.47601]
[1752321606786,9.04019383,2964.3,2963.9,1.68621]
[1752321606787,6.66399383,2964.3,2963.9,24.89621]
[1752321606986,3.2734,2964.3,2964.2,0.67441]
[1752321607181,8.31873661,2964.3,2964.2,0.67441]
[1752321607693,7.36663661,2964.3,2964.2,0.67441]
[1752321608405,8.31873661,2964.3,2964.2,0.67441]
[1752321608998,7.47676252,2964.3,2964.2,0.67441]
[1752321611704,8.15115252,2964.3,2964.2,0.67441]
[1752321612797,8.15116252,2964.3,2964.2,0.67441]
[1752321613397,7.47676252,2964.3,2964.2,0.67441]
[1752321614503,8.15115252,2964.3,2964.2,0.67441]
[1752321617705,3.88604,2964.2,2964.1,0.67443]
[1752321618008,4.72801409,2964.2,2964.1,0.67443]
[1752321618207,4.05357409,2964.2,2964.1,0.67443]
[1752321619299,4.72798409,2964.2,2964.1,0.67443]
[1752321621108,1.56476,2964.1,2964.0,0.67444]
[1752321621309,4.72803409,2964.1,2964.0,0.67444]
[1752321623412,4.72803409,2964.1,2964.0,0.67446]
[1752321625002,4.72803409,2964.1,2964.0,1.98626]
[1752321625208,4.72803409,2964.1,2964.0,0.67446]
[1752321625803,1.56476,2964.0,2963.9,0.67448]
[1752321626008,7.09386,2964.0,2963.9,0.67448]
[1752321628412,6.4194,2964.0,2963.9,3.80978]
[1752321629414,7.09386,2964.0,2963.9,3.80978]
[1752321630503,7.09386,2964.0,2963.9,0.67448]
[1752321631014,3.88611,2963.9,2963.8,0.67448]
[1752321631214,4.72808409,2963.9,2963.8,0.67448]
[1752321631415,4.05357409,2963.9,2963.8,3.80978]
[1752321631609,4.135,2964.0,2963.9,1.59068]
[1752321631810,6.4194,2964.0,2963.9,3.80978]
[1752321632014,7.09386,2964.0,2963.9,3.80978]
[1752321632513,5.0253,2964.0,2963.9,3.80978]
[1752321633814,3.2078,2964.0,2963.9,3.80978]
[1752321634614,4.0981,2964.0,2963.9,3.80978]
[1752321634813,4.135,2964.0,2963.9,3.80978]
[1752321636015,3.2078,2964.0,2963.9,3.80978]
[1752321636416,4.135,2964.0,2963.9,3.80978]
[1752321636713,3.2078,2964.0,2963.9,3.80978]
[1752321637014,5.0253,2964.0,2963.9,3.80978]
[1752321638711,3.2078,2964.0,2963.9,3.80978]
[1752321639113,4.135,2964.0,2963.9,3.80978]
[1752321639714,5.0253,2964.0,2963.9,3.80978]
[1752321640609,4.135,2964.0,2963.9,3.80978]
[1752321640805,3.2078,2964.0,2963.9,3.80978]
[1752321641516,5.0253,2964.0,2963.9,3.80978]
[1752321641916,4.135,2964.0,2963.9,3.80978]
[1752321642114,3.2078,2964.0,2963.9,3.80978]
[1752321643920,1.8175,2964.2,2964.1,2.46744]
[1752321644116,1.8175,2964.2,2964.1,3.76504]
[1752321649627,3.77232,2964.2,2964.1,2.1833]
[1752321650030,3.82056,2964.0,2963.9,2.1833]
[1752321650326,7.87033409,2964.0,2963.9,2.1833]
[1752321651126,7.87033409,2964.0,2963.7,3.1057]
[1752321651127,3.82061,2963.8,2963.7,3.1057]
[1752321651326,3.82061,2963.8,2963.1,53.48242]
[1752321651327,1.5794,2963.4,2963.3,1.2976]
[1752321651627,7.87047409,2963.4,2963.3,3.78032]
[1752321652626,7.87047409,2963.4,2963.3,3.1057]
[1752321653027,7.87047409,2963.4,2963.3,3.78032]
[1752321655228,7.87047409,2963.4,2963.3,3.1057]
[1752321656930,4.1687,2963.4,2963.3,3.78032]
[1752321657131,5.0735,2963.4,2963.3,3.78032]
[1752321659535,6.3539,2963.4,2963.3,3.78032]
[1752321659835,7.0285,2963.4,2963.3,3.78032]
[1752321664238,6.3539,2963.4,2963.3,3.78032]
[1752321665136,3.2078,2963.4,2963.3,4.62229409]
[1752321665340,3.2078,2963.7,2963.6,1.56025]
[1752321665535,4.1687,2963.7,2963.6,3.78025]
[1752321666437,5.0735,2963.7,2963.6,3.78025]
[1752321666638,5.74803,2963.7,2963.6,3.78025]
[1752321667031,5.0735,2963.7,2963.6,3.78025]
[1752321667537,4.1687,2963.7,2963.6,3.78025]
[1752321670038,3.2078,2963.7,2963.6,3.78025]
[1752321671940,4.1687,2963.7,2963.6,3.78025]
[1752321672532,3.2078,2963.7,2963.6,3.78025]
[1752321674039,4.1687,2963.7,2963.6,3.78025]
[1752321674242,3.2078,2963.7,2963.6,3.78025]
[1752321674438,5.0814,2964.0,2963.9,1.51718]
[1752321674646,5.0814,2964.0,2963.9,3.78158]
[1752321675436,6.4426,2964.0,2963.9,3.78158]
[1752321675942,5.75586,2964.0,2963.9,3.78158]
[1752321676141,5.0814,2964.0,2963.9,3.78158]
[1752321676341,6.4426,2964.0,2963.9,3.78158]
[1752321678146,3.2348,2964.0,2963.9,3.78158]
[1752321678342,6.4426,2964.0,2963.9,3.78158]
[1752321681842,5.0814,2964.0,2963.9,3.78158]
[1752321682246,3.2078,2964.0,2963.9,3.78158]
[1752321682838,3.2078,2964.0,2963.9,4.62355409]
[1752321683045,3.2078,2964.0,2963.9,3.78158]
[1752321685744,4.2004,2964.0,2963.9,3.78158]
[1752321686950,5.1131,2964.0,2963.9,3.78158]
[1752321689455,6.4743,2964.0,2963.9,3.78158]
[1752321689652,6.4743,2964.0,2963.9,2.85918]
[1752321689846,6.4743,2964.0,2963.9,2.01648]
[1752321690051,7.14876,2964.0,2963.9,0.67448]
[1752321692255,6.4743,2964.0,2963.9,0.67448]
[1752321692656,7.14876,2964.0,2963.9,0.67448]
[1752321693050,6.4743,2964.0,2963.9,2.01648]
[1752321694661,7.14876,2964.0,2963.9,2.01648]
[1752321696058,3.94096,2964.0,2963.9,2.01648]
[1752321696257,7.14876,2964.0,2963.9,2.01648]
[1752321697361,8.148885,2964.0,2963.9,2.01648]
[1752321697851,8.148885,2964.0,2963.9,2.85918]
[1752321698562,6.4743,2964.0,2963.9,3.83018]
[1752321699964,7.14876,2964.0,2963.9,3.83018]
[1752321700161,8.14924498,2964.0,2963.9,3.83018]
[1752321700864,7.14876,2964.0,2963.9,3.83018]
[1752321701065,8.14924562,2964.0,2963.9,3.83018]
[1752321701860,3.2078,2964.0,2963.9,3.83018]
[1752321702365,4.2004,2964.0,2963.9,3.83018]
[1752321702568,0.9926,2964.0,2963.9,3.83018]
[1752321702761,4.2004,2964.0,2963.9,3.83018]
[1752321704666,3.2078,2964.0,2963.9,3.83018]
[1752321704866,4.2004,2964.0,2963.9,3.83018]
[1752321706665,3.2078,2964.0,2963.9,3.83018]
[1752321707363,4.1287,2964.0,2963.9,3.83018]
[1752321708568,0.9209,2964.0,2963.9,3.83018]
[1752321708768,4.1287,2964.0,2963.9,3.83018]
[1752321709270,3.2078,2964.0,2963.9,3.83018]
[1752321710267,4.1287,2964.0,2963.9,3.83018]
[1752321711371,3.2078,2964.0,2963.9,3.83018]
[1752321713469,4.1287,2964.0,2963.9,3.83018]
[1752321714571,5.0218,2964.0,2963.9,3.83018]
[1752321715271,3.2078,2964.0,2963.9,3.83018]
[1752321715471,3.1305,2964.2,2964.1,1.49964]
[1752321715672,4.13029803,2964.2,2964.1,3.74144]
[1752321718177,7.33809803,2964.2,2964.1,3.74144]
[1752321719080,5.12849803,2964.2,2964.1,3.74144]
[1752321719879,6.02159803,2964.2,2964.1,3.74144]
[1752321720580,7.33809803,2964.2,2964.1,3.74144]
[1752321721577,6.02159803,2964.2,2964.1,3.74144]
[1752321722674,5.12849803,2964.2,2964.1,3.74144]
[1752321722878,4.20759803,2964.2,2964.1,3.74144]
[1752321723075,3.2078,2964.2,2964.1,3.74144]
[1752321723773,0.84197409,2964.7,2964.6,3.74132]
[1752321723774,6.3383,2964.7,2964.6,3.74132]
[1752321723980,7.33820948,2964.7,2964.6,3.74132]
[1752321724368,6.02170948,2964.7,2964.6,3.74132]
[1752321726471,4.20770948,2964.7,2964.6,3.74132]
[1752321726677,3.2078,2964.7,2964.6,3.74132]
[1752321729084,4.1287,2964.7,2964.6,3.74132]
[1752321729785,5.0218,2964.7,2964.6,3.74132]
[1752321729976,6.3383,2964.7,2964.6,0.67432]
[1752321730485,3.1305,2964.7,2964.6,2.01112]
[1752321731379,0.8931,2964.2,2964.1,1.7302]
[1752321731684,3.97247409,2964.2,2964.1,1.49964]
[1752321732186,3.1305,2964.2,2964.1,3.74144]
[1752321732679,3.33027409,2964.7,2964.6,0.67432]
[1752321732885,3.33027409,2964.7,2964.6,2.01112]
[1752321733086,6.86241946,2964.7,2964.6,2.01112]
[1752321733286,7.10087409,2964.7,2964.6,2.01112]
[1752321733787,7.10087409,2964.7,2964.6,0.67432]
[1752321733982,6.2589,2964.7,2964.6,0.67432]
[1752321734182,3.0511,2964.7,2964.6,3.73162]
[1752321735884,3.0511,2964.7,2964.6,3.05622]
[1752321736083,3.0511,2964.7,2964.6,3.73052]
[1752321737787,3.89307409,2964.7,2964.6,2.82552]
[1752321738891,3.89307409,2964.7,2964.6,0.6743]
[1752321739688,3.89307409,2964.7,2964.6,2.8266]
[1752321739882,3.89307409,2964.7,2964.6,3.7293]
[1752321741185,3.0511,2964.7,2964.6,3.7293]
[1752321743892,1.814,2964.7,2964.6,3.7293]
[1752321745094,4.1314,2964.9,2964.8,3.72928]
[1752321745294,5.95551195,2964.9,2964.8,3.72928]
[1752321745802,4.9564,2964.9,2964.8,3.72928]
[1752321747593,0.9236,2965.4,2964.8,4.21333409]
[1752321747794,2.9857,2965.4,2965.3,3.055]
[1752321748090,3.98510493,2965.4,2965.3,3.72917]
[1752321748693,2.9857,2965.4,2965.3,3.72917]
[1752321748892,1.7486,2965.4,2965.3,3.72917]
[1752321750996,4.9564,2965.6,2965.5,3.72912]
[1752321751497,4.1314,2965.6,2965.5,3.72912]
[1752321751695,3.2078,2965.6,2965.5,3.72912]
[1752321751896,4.1314,2965.6,2965.5,3.72912]
[1752321752501,5.12973386,2965.6,2965.5,3.72912]
[1752321753298,5.95473386,2965.6,2965.5,3.72912]
[1752321753693,7.19183386,2965.6,2965.5,3.72912]
[1752321753891,5.87310795,2965.6,2965.3,1.2536]
[1752321754097,2.59057409,2965.4,2965.3,1.92776]
[1752321754392,4.82572936,2965.4,2965.3,1.92776]
[1752321754798,4.82572936,2965.4,2965.3,2.82646]
[1752321756000,3.98375527,2965.4,2965.3,2.82646]
[1752321756293,3.98375527,2965.4,2965.3,3.72916]
[1752321756500,2.9857,2965.4,2965.3,3.72916]
[1752321760200,1.7486,2965.4,2965.3,3.72916]
[1752321760398,0.9236,2965.4,2965.3,3.72916]
[1752321760898,1.7486,2965.4,2965.3,3.72916]
[1752321761598,0.9236,2965.8,2965.7,1.57277]
[1752321761798,3.98175745,2965.8,2965.7,3.72907]
[1752321763305,1.7486,2965.8,2965.7,3.72907]
[1752321765106,0.9236,2965.8,2965.7,3.72907]
[1752321765502,6.1824,2966.0,2965.9,1.47933]
[1752321765707,6.1824,2966.0,2965.9,3.75683]
[1752321766008,2.9746,2966.0,2965.9,3.75683]
[1752321767303,0.9657,2966.0,2965.9,3.75683]
[1752321768803,4.9767,2966.3,2966.2,3.75676]
[1752321769004,4.1735,2966.3,2966.2,3.75676]
[1752321769605,4.9767,2966.3,2966.2,3.75676]
[1752321770910,1.7689,2966.3,2966.2,3.75676]
[1752321771111,4.9767,2966.3,2966.2,3.75676]
[1752321772309,1.7689,2966.3,2966.2,3.75676]
[1752321772504,4.9767,2966.3,2966.2,3.75676]
[1752321772700,4.1735,2966.3,2966.2,3.75676]
[1752321772906,3.2078,2966.3,2966.2,3.75676]
[1752321773112,4.1735,2966.3,2966.2,3.75676]
[1752321774500,7.02437409,2966.3,2966.2,2.78166]
[1752321775009,7.02437409,2966.3,2966.2,3.75676]
[1752321778210,6.1824,2966.3,2966.2,3.75676]
[1752321781512,4.9767,2966.3,2966.2,3.75676]
[1752321787619,6.1824,2966.3,2966.2,3.75676]
[1752321791229,3.97241369,2966.3,2966.2,3.75676]
[1752321792128,1.7689,2966.3,2966.2,3.75676]
[1752321793022,0.9657,2966.3,2966.2,3.75676]
[1752321794630,6.1824,2966.5,2966.4,3.75331]
[1752321794832,7.18086807,2966.5,2966.4,3.75331]
[1752321795032,5.17196807,2966.5,2966.4,3.75331]
[1752321795334,4.20626807,2966.5,2966.4,3.75331]
[1752321795534,5.19756807,2966.5,2966.4,3.75331]
[1752321795930,6.02206807,2966.5,2966.4,3.75331]
[1752321796134,7.26316807,2966.5,2966.4,3.75331]
[1752321796735,6.02206807,2966.5,2966.4,3.75331]
[1752321798039,2.81426807,2966.5,2966.4,3.75331]
[1752321798240,2.8169327,2966.5,2966.4,3.75331]
[1752321800435,1.9924327,2966.5,2966.4,3.75331]
[1752321800636,1.0011327,2966.5,2966.4,3.75331]
[1752321801339,1.9924327,2966.5,2966.4,3.75331]
[1752321801934,1.0011327,2966.5,2966.4,3.75331]
[1752321802138,0.00266463,2966.5,2966.4,3.75331]
[1752321803740,3.05956463,2966.5,2966.4,3.75331]
[1752321804141,4.05858037,2966.5,2966.4,3.75331]
[1752321804737,3.05956463,2966.5,2966.4,3.75331]
[1752321810049,1.81846463,2966.5,2966.4,3.75331]
[1752321811352,4.63e-06,2966.5,2966.4,3.75331]
[1752321811852,1.81580463,2966.5,2966.4,3.75331]
[1752321812652,0.99130463,2966.5,2966.4,3.75331]
[1752321813451,4.63e-06,2966.5,2966.4,1.54541]
[1752321820459,0.99130463,2966.5,2966.4,2.77821]
[1752321820859,3.05690463,2966.5,2966.4,2.77821]
[1752321821056,3.05690463,2966.5,2966.4,0.67391]
[1752321822255,3.05690463,2966.5,2966.4,1.90671]
[1752321824661,4.63e-06,2966.5,2966.4,3.35718409]
[1752321824860,2.95090463,2966.5,2966.4,1.54541]
[1752321825255,2.95090463,2966.5,2966.4,3.61401]
[1752321826063,4.63e-06,2966.5,2966.4,2.38738409]
[1752321834567,0.78660463,2966.5,2966.4,1.54541]
[1752321834770,0.38767463,2966.5,2966.4,3.28498409]
[1752321835072,1.9596,2966.8,2966.7,3.54905]
[1752321835271,1.9596,2966.8,2966.7,26.59405]
[1752321837269,3.2078,2967.3,2966.8,3.54902]
[1752321837270,0.9702,2966.9,2966.8,3.54902]
[1752321837463,0.9702,2966.9,2966.8,4.39099409]
[1752321837863,3.2078,2967.3,2967.2,0.67373]
[1752321838064,5.96423222,2967.3,2967.2,4.39090409]
[1752321838264,2.75643222,2967.3,2967.2,27.43290409]
[1752321840173,2.75643222,2967.3,2967.2,30.64070409]
[1752321840873,1.7568,2967.3,2967.2,30.64070409]
[1752321841466,4.41563329,2968.5,2968.0,2.65115]
[1752321841668,0.7866,2968.5,2968.4,4.39063409]
[1752321841869,1.78571428,2968.5,2968.4,49.62566]
[1752321842366,3.64708837,2968.5,2968.4,49.62566]
[1752321842563,2.62768837,2968.5,2968.0,5.2764]
[1752321842764,1.806,2967.8,2967.7,50.37762]
[1752321843169,1.806,2967.8,2967.7,23.71162]
[1752321843569,2.5343,2967.8,2967.7,23.71162]
[1752321843770,3.53210481,2967.8,2967.7,23.71162]
[1752321843970,3.53210481,2967.8,2967.7,0.67362]
[1752321844173,3.53210481,2967.8,2967.3,1.68427]
[1752321844174,7.6263789,2967.8,2967.3,1.68427]
[1752321844473,1.74097409,2967.6,2967.5,0.67367]
[1752321844676,5.67707409,2967.6,2967.5,0.67367]
[1752321845673,6.35071409,2967.6,2967.5,0.32787]
[1752321845874,6.67457294,2967.6,2967.5,0.32787]
[1752321846075,6.35071409,2967.6,2967.5,0.32787]
[1752321847077,1.40197,2967.5,2967.4,0.67368]
[1752321847276,0.6737,2967.4,2967.3,0.6737]
[1752321847475,0.67371,2967.3,2967.2,0.67372]
[1752321847776,3.88151,2967.3,2967.2,0.67372]
[1752321847972,3.88151,2967.3,2967.2,0.67373]
[1752321848168,3.9361,2967.3,2967.2,0.67373]
[1752321848677,3.88152,2967.3,2967.2,0.67373]
[1752321848875,3.2078,2967.3,2967.2,0.67373]
[1752321849274,3.9361,2967.3,2967.2,0.67373]
[1752321850274,4.60981,2967.3,2967.2,0.67373]
[1752321850676,3.9361,2967.3,2967.2,1.84473]
[1752321850978,0.67382,2967.1,2967.0,0.67382]
[1752321851179,3.2078,2967.3,2967.1,0.67381]
[1752321851180,1.4021,2967.2,2967.1,0.67381]
[1752321851674,1.57027409,2967.2,2967.1,0.67381]
[1752321852180,0.7283,2967.0,2966.8,1.171]
[1752321852379,1.57027409,2967.0,2966.9,0.67387]
[1752321852680,4.77807409,2967.0,2966.9,0.67387]
[1752321853179,4.79077409,2967.0,2966.9,0.67387]
[1752321853370,0.0127,2966.9,2966.8,1.84487]